Workbook

Sheet HD
A1: PHẦN MỀM THU CHI CÁ NHÂN WPRO
C4: ENABLE MACRO TRƯỚC KHI DÙNG
C25: LƯU Ý: Nếu bạn không thấy nút nào chứa chữ Enable, bạn hãy làm theo hướng dẫn ở hình dưới

Sheet HOME
B1: PHẦN MỀM QUẢN LÝ CHI TIÊU CÁ NHÂN, GIA ĐÌNH WPRO (ALL NEW)
B20: KHÁCH HÀNG: | D20: WPRO.VN - 0869 770 968

Sheet Setup
A1: Bạn có muốn khôi phục dữ liệu từ bản cũ không? | G1: URL
A2: Khôi phục dữ liệu thành công. | G2: Tccn.pro.vn
A3: Có lỗi, liên hệ: webkynang.vn@gmail.com; hotline: 038 997 8430 để được hỗ trợ

Sheet DM
B1: DANH MỤC
E2: Lưu ý tại báo cáo nợ/ vay: Số âm là còn phải thu, Số dương là còn phải trả.
B3: DANH MỤC TÀI KHOẢN | C3: SỐ DƯ ĐẦU | E3: NGƯỜI VAY/ NỢ | F3: SỐ DƯ ĐẦU | H3: DANH MỤC NGUỒN THU | J3: DANH MỤC NGUỒN CHI
B4: TM | C4: 10000000 | E4: HA | F4: 2000000 | H4: Tiền lương | J4: Thức ăn
B5: VCB | C5: 5000000 | E5: VU | F5: -50000000 | H5: Làm thêm | J5: Tiền học cho con
B6: Quỹ Tự do tài chính | C6: 20000000 | H6: Thưởng cuối năm | J6: Xe oto
B7: Quỹ sức khỏe | C7: 150000000 | J7: Điện nước, internet
B8: Quỹ đầu tư | C8: 200000000
B24: Tổng | C24: =SUM(C4:C23) -> 385000000 | E24: Tổng | F24: =SUM(F4:F23) -> -48000000 | H24: =SUM(H4:H23) -> 0 | J24: =SUM(J4:J23) -> 0

Sheet KE HOACH
B1: KẾ HOẠCH THU CHI | E1: Năm: | F1: 2021
B3: NGUỒN THU | C3: 1 | D3: 2 | E3: 3 | F3: 4 | G3: 5 | H3: 6 | I3: 7 | J3: 8 | K3: 9 | L3: 10 | M3: 11 | N3: 12 | O3: CẢ NĂM
B4: =DM!H4 -> Tiền lương | N4: 10000000 | O4: =SUM(C4:N4) -> 10000000
B5: =DM!H5 -> Làm thêm | N5: 1000000 | O5: =SUM(C5:N5) -> 1000000
B6: =DM!H6 -> Thưởng cuối năm | O6: 0
B7: =DM!H7 -> 0 | O7: 0
B8: =DM!H8 -> 0 | O8: 0
B9: =DM!H9 -> 0 | O9: 0
B10: =DM!H10 -> 0 | O10: 0
B11: =DM!H11 -> 0 | O11: 0
B12: =DM!H12 -> 0 | O12: 0
B13: =DM!H13 -> 0 | O13: 0
B14: =DM!H14 -> 0 | O14: 0
B15: =DM!H15 -> 0 | O15: 0
B16: =DM!H16 -> 0 | O16: 0
B17: =DM!H17 -> 0 | O17: 0
B18: =DM!H18 -> 0 | O18: 0
B19: =DM!H19 -> 0 | O19: 0
B20: =DM!H20 -> 0 | O20: 0
B21: =DM!H21 -> 0 | O21: 0
B22: =DM!H22 -> 0 | O22: 0
B23: =DM!H23 -> 0 | O23: 0
B24: Tổng | C24: =SUM(C4:C23) -> 0 | D24: =SUM(D4:D23) -> 0 | E24: 0 | F24: 0 | G24: 0 | H24: 0 | I24: 0 | J24: 0 | K24: 0 | L24: 0 | M24: 0 | N24: 11000000 | O24: 11000000
B26: CHI TIÊU | C26: 1 | D26: 2 | E26: 3 | F26: 4 | G26: 5 | H26: 6 | I26: 7 | J26: 8 | K26: 9 | L26: 10 | M26: 11 | N26: 12 | O26: CẢ NĂM
B27: =DM!J4 -> Thức ăn | N27: 2000000 | O27: =SUM(C27:N27) -> 2000000
B28: =DM!J5 -> Tiền học cho con | N28: 3000000 | O28: =SUM(C28:N28) -> 3000000
B29: =DM!J6 -> Xe oto | N29: 500000 | O29: 500000
B30: =DM!J7 -> Điện nước, internet | N30: 500000 | O30: 500000
B31: =DM!J8 -> 0 | O31: 0
B32: =DM!J9 -> 0 | O32: 0
B33: =DM!J10 -> 0 | O33: 0
B34: =DM!J11 -> 0 | O34: 0
B35: =DM!J12 -> 0 | O35: 0
B36: =DM!J13 -> 0 | O36: 0
B37: =DM!J14 -> 0 | O37: 0
B38: =DM!J15 -> 0 | O38: 0
B39: =DM!J16 -> 0 | O39: 0
B40: =DM!J17 -> 0 | O40: 0
B41: =DM!J18 -> 0 | O41: 0
B42: =DM!J19 -> 0 | O42: 0
B43: =DM!J20 -> 0 | O43: 0
B44: =DM!J21 -> 0 | O44: 0
B45: =DM!J22 -> 0 | O45: 0
B46: =DM!J23 -> 0 | O46: 0
B47: Tổng | C47: =SUM(C27:C46) -> 0 | D47: 0 | E47: 0 | F47: 0 | G47: 0 | H47: 0 | I47: 0 | J47: 0 | K47: 0 | L47: 0 | M47: 0 | N47: 6000000 | O47: 6000000

Sheet THUC TE
B1: THỰC TẾ THU CHI HÀNG NGÀY | H1: ZALO hỗ trợ: 0869 770 968
B3: NGÀY | C3: NỘI DUNG THU/ CHI | D3: TÀI KHOẢN | E3: SỐ TIỀN THU | F3: NGUỒN THU | G3: SỐ TIỀN CHI | H3: NGUỒN CHI | I3: NGƯỜI VAY/ NỢ | J3: TỰ ĐỔI TÊN | K3: TỰ ĐỔI TÊN | L3: TỰ ĐỔI TÊN | M3: TỰ ĐỔI TÊN | N3: TỰ ĐỔI TÊN | O3: GHI CHÚ
B4: 2021-12-02 | C4: Lương tháng 11 | D4: VCB | E4: 11000000 | F4: Tiền lương
B5: 2021-12-02 | C5: Tiền bán hàng online | D5: TM | E5: 1500000 | F5: Làm thêm
B6: 2021-12-02 | C6: Trả nợ | D6: VCB | G6: 1000000 | I6: HA
B7: 2021-12-02 | C7: Thức ăn | D7: VCB | G7: 100000 | H7: Thức ăn
B8: 2021-12-03 | C8: Thức ăn | D8: VCB | G8: 100000 | H8: Thức ăn
B9: 2021-12-04 | C9: Thức ăn | D9: VCB | G9: 100000 | H9: Thức ăn
B10: 2021-12-05 | C10: Thức ăn | D10: VCB | G10: 100000 | H10: Thức ăn
B11: 2021-12-06 | C11: Thức ăn | D11: VCB | G11: 100000 | H11: Thức ăn
B12: 2021-12-07 | C12: Thức ăn | D12: VCB | G12: 100000 | H12: Thức ăn
B13: 2021-12-08 | C13: Thức ăn | D13: VCB | G13: 100000 | H13: Thức ăn
B14: 2021-12-09 | C14: Điện nước tháng 11 | D14: TM | G14: 500000 | H14: Điện nước, internet
B15: 2021-12-09 | C15: Thu hồi nợ từ Vũ | D15: VCB | E15: 45000000 | I15: VU

Sheet BCTK
B1: BÁO CÁO TÀI KHOẢN | F1: Chọn tháng: | G1: 12 | H1: Chọn năm: | I1: 2022
C5: TÀI KHOẢN | D5: SỐ DƯ ĐẦU | E5: THU | F5: CHI | G5: SỐ DƯ CUỐI
C6: =DM!B4 -> TM | D6: 11000000 | E6: 0 | F6: 0 | G6: =+D6+E6-F6 -> 11000000
C7: =DM!B5 -> VCB | D7: 59300000 | E7: 0 | F7: 0 | G7: =+D7+E7-F7 -> 59300000
C8: =DM!B6 -> Quỹ Tự do tài chính | D8: 20000000 | E8: 0 | F8: 0 | G8: 20000000
C9: =DM!B7 -> Quỹ sức khỏe | D9: 150000000 | E9: 0 | F9: 0 | G9: 150000000
C10: =DM!B8 -> Quỹ đầu tư | D10: 200000000 | E10: 0 | F10: 0 | G10: 200000000
C11: =DM!B9 -> 0 | D11: 0 | E11: 0 | F11: 0 | G11: 0
C12: =DM!B10 -> 0 | D12: 0 | E12: 0 | F12: 0 | G12: 0
C13: =DM!B11 -> 0 | D13: 0 | E13: 0 | F13: 0 | G13: 0
C14: =DM!B12 -> 0 | D14: 0 | E14: 0 | F14: 0 | G14: 0
C15: =DM!B13 -> 0 | D15: 0 | E15: 0 | F15: 0 | G15: 0
C16: =DM!B14 -> 0 | D16: 0 | E16: 0 | F16: 0 | G16: 0
C17: =DM!B15 -> 0 | D17: 0 | E17: 0 | F17: 0 | G17: 0
C18: =DM!B16 -> 0 | D18: 0 | E18: 0 | F18: 0 | G18: 0
C19: =DM!B17 -> 0 | D19: 0 | E19: 0 | F19: 0 | G19: 0
C20: =DM!B18 -> 0 | D20: 0 | E20: 0 | F20: 0 | G20: 0
C21: =DM!B19 -> 0 | D21: 0 | E21: 0 | F21: 0 | G21: 0
C22: =DM!B20 -> 0 | D22: 0 | E22: 0 | F22: 0 | G22: 0
C23: =DM!B21 -> 0 | D23: 0 | E23: 0 | F23: 0 | G23: 0
C24: =DM!B22 -> 0 | D24: 0 | E24: 0 | F24: 0 | G24: 0
C25: =DM!B23 -> 0 | D25: 0 | E25: 0 | F25: 0 | G25: 0
C26: Tổng | D26: =SUM(D6:D25) -> 440300000 | E26: =SUM(E6:E25) -> 0 | F26: 0 | G26: 440300000

Sheet BC_30DAY
B1: BÁO CÁO THU CHI 30 NGÀY GẦN NHẤT | J1: CHI | L1: Ngày: | M1: 2021-12-09 | O1: Chọn ĐVT: | P1: VND | Q1: =IF(P1="vnd",1,IF(P1="K vnd",1000,1000000)) -> 1
B3: ="NGUỒN " &J1 -> NGUỒN CHI | C3: =M1 -> 2021-12-09 | D3: =+C3-1 -> 2021-12-08 | E3: =+D3-1 -> 2021-12-07 | F3: 2021-12-06 | G3: 2021-12-05 | H3: 2021-12-04 | I3: 2021-12-03 | J3: 2021-12-02 | K3: 2021-12-01 | L3: 2021-11-30 | M3: 2021-11-29 | N3: 2021-11-28 | O3: 2021-11-27 | P3: 2021-11-26 | Q3: =+P3-1 -> 2021-11-25 | R3: 2021-11-24 | S3: 2021-11-23 | T3: 2021-11-22 | U3: 2021-11-21 | V3: 2021-11-20 | W3: 2021-11-19 | X3: 2021-11-18 | Y3: 2021-11-17 | Z3: 2021-11-16 | AA3: 2021-11-15 | AB3: 2021-11-14 | AC3: 2021-11-13 | AD3: 2021-11-12 | AE3: 2021-11-11 | AF3: 2021-11-10 | AG3: =+AF3-1 -> 2021-11-09
B4: Thức ăn | C4: 0 | D4: 100000 | E4: 100000 | F4: 100000 | G4: 100000 | H4: 100000 | I4: 100000 | J4: 100000 | K4: 0 | L4: 0 | M4: 0 | N4: 0 | O4: 0 | P4: 0 | Q4: 0 | R4: 0 | S4: 0 | T4: 0 | U4: 0 | V4: 0 | W4: 0 | X4: 0 | Y4: 0 | Z4: 0 | AA4: 0 | AB4: 0 | AC4: 0 | AD4: 0 | AE4: 0 | AF4: 0 | AG4: 0
B5: Tiền học cho con | C5: 0 | D5: 0 | E5: 0 | F5: 0 | G5: 0 | H5: 0 | I5: 0 | J5: 0 | K5: 0 | L5: 0 | M5: 0 | N5: 0 | O5: 0 | P5: 0 | Q5: 0 | R5: 0 | S5: 0 | T5: 0 | U5: 0 | V5: 0 | W5: 0 | X5: 0 | Y5: 0 | Z5: 0 | AA5: 0 | AB5: 0 | AC5: 0 | AD5: 0 | AE5: 0 | AF5: 0 | AG5: 0
B6: Xe oto | C6: 0 | D6: 0 | E6: 0 | F6: 0 | G6: 0 | H6: 0 | I6: 0 | J6: 0 | K6: 0 | L6: 0 | M6: 0 | N6: 0 | O6: 0 | P6: 0 | Q6: 0 | R6: 0 | S6: 0 | T6: 0 | U6: 0 | V6: 0 | W6: 0 | X6: 0 | Y6: 0 | Z6: 0 | AA6: 0 | AB6: 0 | AC6: 0 | AD6: 0 | AE6: 0 | AF6: 0 | AG6: 0
B7: Điện nước, internet | C7: 500000 | D7: 0 | E7: 0 | F7: 0 | G7: 0 | H7: 0 | I7: 0 | J7: 0 | K7: 0 | L7: 0 | M7: 0 | N7: 0 | O7: 0 | P7: 0 | Q7: 0 | R7: 0 | S7: 0 | T7: 0 | U7: 0 | V7: 0 | W7: 0 | X7: 0 | Y7: 0 | Z7: 0 | AA7: 0 | AB7: 0 | AC7: 0 | AD7: 0 | AE7: 0 | AF7: 0 | AG7: 0
C8: 0 | D8: 0 | E8: 0 | F8: 0 | G8: 0 | H8: 0 | I8: 0 | J8: 0 | K8: 0 | L8: 0 | M8: 0 | N8: 0 | O8: 0 | P8: 0 | Q8: 0 | R8: 0 | S8: 0 | T8: 0 | U8: 0 | V8: 0 | W8: 0 | X8: 0 | Y8: 0 | Z8: 0 | AA8: 0 | AB8: 0 | AC8: 0 | AD8: 0 | AE8: 0 | AF8: 0 | AG8: 0
C9: 0 | D9: 0 | E9: 0 | F9: 0 | G9: 0 | H9: 0 | I9: 0 | J9: 0 | K9: 0 | L9: 0 | M9: 0 | N9: 0 | O9: 0 | P9: 0 | Q9: 0 | R9: 0 | S9: 0 | T9: 0 | U9: 0 | V9: 0 | W9: 0 | X9: 0 | Y9: 0 | Z9: 0 | AA9: 0 | AB9: 0 | AC9: 0 | AD9: 0 | AE9: 0 | AF9: 0 | AG9: 0
C10: 0 | D10: 0 | E10: 0 | F10: 0 | G10: 0 | H10: 0 | I10: 0 | J10: 0 | K10: 0 | L10: 0 | M10: 0 | N10: 0 | O10: 0 | P10: 0 | Q10: 0 | R10: 0 | S10: 0 | T10: 0 | U10: 0 | V10: 0 | W10: 0 | X10: 0 | Y10: 0 | Z10: 0 | AA10: 0 | AB10: 0 | AC10: 0 | AD10: 0 | AE10: 0 | AF10: 0 | AG10: 0
C11: 0 | D11: 0 | E11: 0 | F11: 0 | G11: 0 | H11: 0 | I11: 0 | J11: 0 | K11: 0 | L11: 0 | M11: 0 | N11: 0 | O11: 0 | P11: 0 | Q11: 0 | R11: 0 | S11: 0 | T11: 0 | U11: 0 | V11: 0 | W11: 0 | X11: 0 | Y11: 0 | Z11: 0 | AA11: 0 | AB11: 0 | AC11: 0 | AD11: 0 | AE11: 0 | AF11: 0 | AG11: 0
C12: 0 | D12: 0 | E12: 0 | F12: 0 | G12: 0 | H12: 0 | I12: 0 | J12: 0 | K12: 0 | L12: 0 | M12: 0 | N12: 0 | O12: 0 | P12: 0 | Q12: 0 | R12: 0 | S12: 0 | T12: 0 | U12: 0 | V12: 0 | W12: 0 | X12: 0 | Y12: 0 | Z12: 0 | AA12: 0 | AB12: 0 | AC12: 0 | AD12: 0 | AE12: 0 | AF12: 0 | AG12: 0
C13: 0 | D13: 0 | E13: 0 | F13: 0 | G13: 0 | H13: 0 | I13: 0 | J13: 0 | K13: 0 | L13: 0 | M13: 0 | N13: 0 | O13: 0 | P13: 0 | Q13: 0 | R13: 0 | S13: 0 | T13: 0 | U13: 0 | V13: 0 | W13: 0 | X13: 0 | Y13: 0 | Z13: 0 | AA13: 0 | AB13: 0 | AC13: 0 | AD13: 0 | AE13: 0 | AF13: 0 | AG13: 0
C14: 0 | D14: 0 | E14: 0 | F14: 0 | G14: 0 | H14: 0 | I14: 0 | J14: 0 | K14: 0 | L14: 0 | M14: 0 | N14: 0 | O14: 0 | P14: 0 | Q14: 0 | R14: 0 | S14: 0 | T14: 0 | U14: 0 | V14: 0 | W14: 0 | X14: 0 | Y14: 0 | Z14: 0 | AA14: 0 | AB14: 0 | AC14: 0 | AD14: 0 | AE14: 0 | AF14: 0 | AG14: 0
C15: 0 | D15: 0 | E15: 0 | F15: 0 | G15: 0 | H15: 0 | I15: 0 | J15: 0 | K15: 0 | L15: 0 | M15: 0 | N15: 0 | O15: 0 | P15: 0 | Q15: 0 | R15: 0 | S15: 0 | T15: 0 | U15: 0 | V15: 0 | W15: 0 | X15: 0 | Y15: 0 | Z15: 0 | AA15: 0 | AB15: 0 | AC15: 0 | AD15: 0 | AE15: 0 | AF15: 0 | AG15: 0
C16: 0 | D16: 0 | E16: 0 | F16: 0 | G16: 0 | H16: 0 | I16: 0 | J16: 0 | K16: 0 | L16: 0 | M16: 0 | N16: 0 | O16: 0 | P16: 0 | Q16: 0 | R16: 0 | S16: 0 | T16: 0 | U16: 0 | V16: 0 | W16: 0 | X16: 0 | Y16: 0 | Z16: 0 | AA16: 0 | AB16: 0 | AC16: 0 | AD16: 0 | AE16: 0 | AF16: 0 | AG16: 0
C17: 0 | D17: 0 | E17: 0 | F17: 0 | G17: 0 | H17: 0 | I17: 0 | J17: 0 | K17: 0 | L17: 0 | M17: 0 | N17: 0 | O17: 0 | P17: 0 | Q17: 0 | R17: 0 | S17: 0 | T17: 0 | U17: 0 | V17: 0 | W17: 0 | X17: 0 | Y17: 0 | Z17: 0 | AA17: 0 | AB17: 0 | AC17: 0 | AD17: 0 | AE17: 0 | AF17: 0 | AG17: 0
C18: 0 | D18: 0 | E18: 0 | F18: 0 | G18: 0 | H18: 0 | I18: 0 | J18: 0 | K18: 0 | L18: 0 | M18: 0 | N18: 0 | O18: 0 | P18: 0 | Q18: 0 | R18: 0 | S18: 0 | T18: 0 | U18: 0 | V18: 0 | W18: 0 | X18: 0 | Y18: 0 | Z18: 0 | AA18: 0 | AB18: 0 | AC18: 0 | AD18: 0 | AE18: 0 | AF18: 0 | AG18: 0
C19: 0 | D19: 0 | E19: 0 | F19: 0 | G19: 0 | H19: 0 | I19: 0 | J19: 0 | K19: 0 | L19: 0 | M19: 0 | N19: 0 | O19: 0 | P19: 0 | Q19: 0 | R19: 0 | S19: 0 | T19: 0 | U19: 0 | V19: 0 | W19: 0 | X19: 0 | Y19: 0 | Z19: 0 | AA19: 0 | AB19: 0 | AC19: 0 | AD19: 0 | AE19: 0 | AF19: 0 | AG19: 0
C20: 0 | D20: 0 | E20: 0 | F20: 0 | G20: 0 | H20: 0 | I20: 0 | J20: 0 | K20: 0 | L20: 0 | M20: 0 | N20: 0 | O20: 0 | P20: 0 | Q20: 0 | R20: 0 | S20: 0 | T20: 0 | U20: 0 | V20: 0 | W20: 0 | X20: 0 | Y20: 0 | Z20: 0 | AA20: 0 | AB20: 0 | AC20: 0 | AD20: 0 | AE20: 0 | AF20: 0 | AG20: 0
C21: 0 | D21: 0 | E21: 0 | F21: 0 | G21: 0 | H21: 0 | I21: 0 | J21: 0 | K21: 0 | L21: 0 | M21: 0 | N21: 0 | O21: 0 | P21: 0 | Q21: 0 | R21: 0 | S21: 0 | T21: 0 | U21: 0 | V21: 0 | W21: 0 | X21: 0 | Y21: 0 | Z21: 0 | AA21: 0 | AB21: 0 | AC21: 0 | AD21: 0 | AE21: 0 | AF21: 0 | AG21: 0
C22: 0 | D22: 0 | E22: 0 | F22: 0 | G22: 0 | H22: 0 | I22: 0 | J22: 0 | K22: 0 | L22: 0 | M22: 0 | N22: 0 | O22: 0 | P22: 0 | Q22: 0 | R22: 0 | S22: 0 | T22: 0 | U22: 0 | V22: 0 | W22: 0 | X22: 0 | Y22: 0 | Z22: 0 | AA22: 0 | AB22: 0 | AC22: 0 | AD22: 0 | AE22: 0 | AF22: 0 | AG22: 0
C23: 0 | D23: 0 | E23: 0 | F23: 0 | G23: 0 | H23: 0 | I23: 0 | J23: 0 | K23: 0 | L23: 0 | M23: 0 | N23: 0 | O23: 0 | P23: 0 | Q23: 0 | R23: 0 | S23: 0 | T23: 0 | U23: 0 | V23: 0 | W23: 0 | X23: 0 | Y23: 0 | Z23: 0 | AA23: 0 | AB23: 0 | AC23: 0 | AD23: 0 | AE23: 0 | AF23: 0 | AG23: 0
B24: Tổng | C24: =SUM(C4:C23) -> 500000 | D24: =SUM(D4:D23) -> 100000 | E24: 100000 | F24: 100000 | G24: 100000 | H24: 100000 | I24: 100000 | J24: 100000 | K24: 0 | L24: 0 | M24: 0 | N24: 0 | O24: 0 | P24: 0 | Q24: =SUM(Q4:Q23) -> 0 | R24: =SUM(R4:R23) -> 0 | S24: =SUM(S4:S23) -> 0 | T24: =SUM(T4:T23) -> 0 | U24: =SUM(U4:U23) -> 0 | V24: =SUM(V4:V23) -> 0 | W24: =SUM(W4:W23) -> 0 | X24: =SUM(X4:X23) -> 0 | Y24: =SUM(Y4:Y23) -> 0 | Z24: =SUM(Z4:Z23) -> 0 | AA24: =SUM(AA4:AA23) -> 0 | AB24: =SUM(AB4:AB23) -> 0 | AC24: =SUM(AC4:AC23) -> 0 | AD24: =SUM(AD4:AD23) -> 0 | AE24: =SUM(AE4:AE23) -> 0 | AF24: =SUM(AF4:AF23) -> 0 | AG24: 0

Sheet tam (hidden)
D3: THỰC TẾ | E3: KẾ HOẠCH
C4: THU NHẬP | D4: =BCTHU!$D$26 -> 12500000 | E4: =BCTHU!$E$26 -> 11000000
C5: CHI TIÊU | D5: =BCCHI!D26 -> 1200000 | E5: =BCCHI!E26 -> 6000000

Sheet BCTHU
B1: BÁO CÁO NGUỒN THU | F1: Chọn tháng: | G1: 12 | H1: Chọn năm: | I1: 2021
C5: NGUỒN THU | D5: THỰC TẾ | E5: KẾ HOẠCH | F5: CHÊNH LỆCH
C6: =DM!H4 -> Tiền lương | D6: 11000000 | E6: 10000000 | F6: =+D6-E6 -> 1000000
C7: =DM!H5 -> Làm thêm | D7: 1500000 | E7: 1000000 | F7: =+D7-E7 -> 500000
C8: =DM!H6 -> Thưởng cuối năm | D8: 0 | E8: 0 | F8: 0
C9: =DM!H7 -> 0 | D9: 0 | E9: 0 | F9: 0
C10: =DM!H8 -> 0 | D10: 0 | E10: 0 | F10: 0
C11: =DM!H9 -> 0 | D11: 0 | E11: 0
C12: =DM!H10 -> 0 | D12: 0 | E12: 0
C13: =DM!H11 -> 0 | D13: 0 | E13: 0
C14: =DM!H12 -> 0 | D14: 0 | E14: 0
C15: =DM!H13 -> 0 | D15: 0 | E15: 0
C16: =DM!H14 -> 0 | D16: 0 | E16: 0
C17: =DM!H15 -> 0 | D17: 0 | E17: 0
C18: =DM!H16 -> 0 | D18: 0 | E18: 0
C19: =DM!H17 -> 0 | D19: 0 | E19: 0
C20: =DM!H18 -> 0 | D20: 0 | E20: 0
C21: =DM!H19 -> 0 | D21: 0 | E21: 0
C22: =DM!H20 -> 0 | D22: 0 | E22: 0
C23: =DM!H21 -> 0 | D23: 0 | E23: 0
C24: =DM!H22 -> 0 | D24: 0 | E24: 0
C25: =DM!H23 -> 0 | D25: 0 | E25: 0 | F25: 0
C26: Tổng | D26: =SUM(D6:D25) -> 12500000 | E26: 11000000 | F26: 1500000

Sheet BCCHI
B1: BÁO CÁO NGUỒN CHI | F1: Chọn tháng: | G1: 12 | H1: Chọn năm: | I1: 2021
C5: NGUỒN CHI | D5: THỰC TẾ | E5: KẾ HOẠCH | F5: CHÊNH LỆCH
C6: =DM!J4 -> Thức ăn | D6: 700000 | E6: 2000000 | F6: =+D6-E6 -> -1300000
C7: =DM!J5 -> Tiền học cho con | D7: 0 | E7: 3000000 | F7: -3000000
C8: =DM!J6 -> Xe oto | D8: 0 | E8: 500000 | F8: -500000
C9: =DM!J7 -> Điện nước, internet | D9: 500000 | E9: 500000 | F9: 0
C10: =DM!J8 -> 0 | D10: 0 | E10: 0 | F10: 0
C11: =DM!J9 -> 0 | D11: 0 | E11: 0
C12: =DM!J10 -> 0 | D12: 0 | E12: 0
C13: =DM!J11 -> 0 | D13: 0 | E13: 0
C14: =DM!J12 -> 0 | D14: 0 | E14: 0
C15: =DM!J13 -> 0 | D15: 0 | E15: 0
C16: =DM!J14 -> 0 | D16: 0 | E16: 0
C17: =DM!J15 -> 0 | D17: 0 | E17: 0
C18: =DM!J16 -> 0 | D18: 0 | E18: 0
C19: =DM!J17 -> 0 | D19: 0 | E19: 0
C20: =DM!J18 -> 0 | D20: 0 | E20: 0
C21: =DM!J19 -> 0 | D21: 0 | E21: 0
C22: =DM!J20 -> 0 | D22: 0 | E22: 0
C23: =DM!J21 -> 0 | D23: 0 | E23: 0
C24: =DM!J22 -> 0 | D24: 0 | E24: 0
C25: =DM!J23 -> 0 | D25: 0 | E25: 0
C26: Tổng | D26: =SUM(D6:D25) -> 1200000 | E26: 6000000 | F26: -4800000

Sheet BCNO
B1: BÁO CÁO NỢ, VAY | F1: Chọn tháng: | G1: 12 | H1: Chọn năm: | I1: 2021
C5: NGƯỜI VAY/ NỢ | D5: SỐ DƯ ĐẦU | E5: THU | F5: CHI | G5: SỐ DƯ CUỐI
C6: =DM!E4 -> HA | D6: 2000000 | E6: 0 | F6: 1000000 | G6: =+D6+E6-F6 -> 1000000
C7: =DM!E5 -> VU | D7: -50000000 | E7: 45000000 | F7: 0 | G7: =+D7+E7-F7 -> -5000000
C8: =DM!E6 -> 0 | D8: 0 | E8: 0 | F8: 0 | G8: 0
C9: =DM!E7 -> 0 | D9: 0 | E9: 0 | F9: 0 | G9: 0
C10: =DM!E8 -> 0 | D10: 0 | E10: 0 | F10: 0 | G10: 0
C11: =DM!E9 -> 0 | D11: 0 | E11: 0 | F11: 0
C12: =DM!E10 -> 0 | D12: 0 | E12: 0 | F12: 0
C13: =DM!E11 -> 0 | D13: 0 | E13: 0 | F13: 0
C14: =DM!E12 -> 0 | D14: 0 | E14: 0 | F14: 0
C15: =DM!E13 -> 0 | D15: 0 | E15: 0 | F15: 0
C16: =DM!E14 -> 0 | D16: 0 | E16: 0 | F16: 0
C17: =DM!E15 -> 0 | D17: 0 | E17: 0 | F17: 0
C18: =DM!E16 -> 0 | D18: 0 | E18: 0 | F18: 0
C19: =DM!E17 -> 0 | D19: 0 | E19: 0 | F19: 0
C20: =DM!E18 -> 0 | D20: 0 | E20: 0 | F20: 0
C21: =DM!E19 -> 0 | D21: 0 | E21: 0 | F21: 0
C22: =DM!E20 -> 0 | D22: 0 | E22: 0 | F22: 0
C23: =DM!E21 -> 0 | D23: 0 | E23: 0 | F23: 0
C24: =DM!E22 -> 0 | D24: 0 | E24: 0 | F24: 0
C25: =DM!E23 -> 0 | D25: 0 | E25: 0 | F25: 0
C26: Tổng | D26: =SUM(D6:D25) -> -48000000 | E26: =SUM(E6:E25) -> 45000000 | F26: 1000000 | G26: -4000000

Sheet BAO CAO (hidden)
B1: BÁO CÁO QUẢN TRỊ THU CHI | F1: Chọn tháng: | G1: 6 | H1: Chọn năm: | I1: 2021
B16: TÀI KHOẢN | C16: SỐ DƯ ĐẦU | D16: THU | E16: CHI | F16: SỐ DƯ CUỐI | H16: NGUỒN THU | I16: THỰC TẾ | J16: KẾ HOẠCH | K16: CHÊNH LỆCH
B17: =DM!B4 -> TM | C17: 0 | D17: 0 | E17: 0 | F17: =+C17+D17-E17 -> 0 | H17: =DM!H4 -> Tiền lương | I17: 0 | J17: 0 | K17: =+I17-J17 -> 0
B18: =DM!B5 -> VCB | C18: 0 | D18: 0 | E18: 0 | F18: =+C18+D18-E18 -> 0 | H18: =DM!H5 -> Làm thêm | I18: 0 | J18: 0 | K18: =+I18-J18 -> 0
B19: =DM!B6 -> Quỹ Tự do tài chính | C19: 0 | D19: 0 | E19: 0 | F19: 0 | H19: =DM!H6 -> Thưởng cuối năm | I19: 0 | J19: 0 | K19: 0
B20: =DM!B7 -> Quỹ sức khỏe | C20: 0 | D20: 0 | E20: 0 | F20: 0 | H20: =DM!H7 -> 0 | I20: 0 | J20: 0 | K20: 0
B21: =DM!B8 -> Quỹ đầu tư | C21: 0 | D21: 0 | E21: 0 | F21: =+C21+D21-E21 -> 0 | H21: =DM!H8 -> 0 | I21: 0 | J21: 0 | K21: 0
B22: =DM!B9 -> 0 | C22: 0 | D22: 0 | E22: 0 | H22: =DM!H9 -> 0 | I22: 0 | J22: 0
B23: =DM!B10 -> 0 | C23: 0 | D23: 0 | E23: 0 | H23: =DM!H10 -> 0 | I23: 0 | J23: 0
B24: =DM!B11 -> 0 | C24: 0 | D24: 0 | E24: 0 | H24: =DM!H11 -> 0 | I24: 0 | J24: 0
B25: =DM!B12 -> 0 | C25: 0 | D25: 0 | E25: 0 | H25: =DM!H12 -> 0 | I25: 0 | J25: 0
B26: =DM!B13 -> 0 | C26: 0 | D26: 0 | E26: 0 | H26: =DM!H13 -> 0 | I26: 0 | J26: 0
B27: =DM!B14 -> 0 | C27: 0 | D27: 0 | E27: 0 | H27: =DM!H14 -> 0 | I27: 0 | J27: 0
B28: =DM!B15 -> 0 | C28: 0 | D28: 0 | E28: 0 | H28: =DM!H15 -> 0 | I28: 0 | J28: 0
B29: =DM!B16 -> 0 | C29: 0 | D29: 0 | E29: 0 | H29: =DM!H16 -> 0 | I29: 0 | J29: 0
B30: =DM!B17 -> 0 | C30: 0 | D30: 0 | E30: 0 | H30: =DM!H17 -> 0 | I30: 0 | J30: 0
B31: =DM!B18 -> 0 | C31: 0 | D31: 0 | E31: 0 | H31: =DM!H18 -> 0 | I31: 0 | J31: 0
B32: =DM!B19 -> 0 | C32: 0 | D32: 0 | E32: 0 | H32: =DM!H19 -> 0 | I32: 0 | J32: 0
B33: =DM!B20 -> 0 | C33: 0 | D33: 0 | E33: 0 | H33: =DM!H20 -> 0 | I33: 0 | J33: 0
B34: =DM!B21 -> 0 | C34: 0 | D34: 0 | E34: 0 | H34: =DM!H21 -> 0 | I34: 0 | J34: 0
B35: =DM!B22 -> 0 | C35: 0 | D35: 0 | E35: 0 | H35: =DM!H22 -> 0 | I35: 0 | J35: 0
B36: =DM!B23 -> 0 | C36: 0 | D36: 0 | E36: 0 | F36: 0 | H36: =DM!H23 -> 0 | I36: 0 | J36: 0 | K36: 0
B37: Tổng | C37: =SUM(C17:C36) -> 0 | D37: =SUM(D17:D36) -> 0 | E37: 0 | F37: 0 | H37: Tổng | I37: =SUM(I17:I36) -> 0 | J37: =SUM(J17:J36) -> 0 | K37: =SUM(K17:K36) -> 0
B39: Lưu ý tại báo cáo nợ/ vay: Số âm là còn phải thu, Số dương là con phải trả.
B40: NGƯỜI VAY/ NỢ | C40: SỐ DƯ ĐẦU | D40: THU | E40: CHI | F40: SỐ DƯ CUỐI | H40: CHI TIÊU | I40: THỰC TẾ | J40: KẾ HOẠCH | K40: CHÊNH LỆCH
B41: =DM!E4 -> HA | C41: 0 | D41: 0 | E41: 0 | F41: =+C41+D41-E41 -> 0 | H41: =DM!J4 -> Thức ăn | I41: 0 | J41: 0 | K41: =+I41-J41 -> 0
B42: =DM!E5 -> VU | C42: 0 | D42: 0 | E42: 0 | F42: =+C42+D42-E42 -> 0 | H42: =DM!J5 -> Tiền học cho con | I42: 0 | J42: 0 | K42: 0
B43: =DM!E6 -> 0 | C43: 0 | D43: 0 | E43: 0 | F43: 0 | H43: =DM!J6 -> Xe oto | I43: 0 | J43: 0 | K43: 0
B44: =DM!E7 -> 0 | C44: 0 | D44: 0 | E44: 0 | F44: 0 | H44: =DM!J7 -> Điện nước, internet | I44: 0 | J44: 0 | K44: 0
B45: =DM!E8 -> 0 | C45: 0 | D45: 0 | E45: 0 | F45: 0 | H45: =DM!J8 -> 0 | I45: 0 | J45: 0 | K45: 0
B46: =DM!E9 -> 0 | C46: 0 | D46: 0 | E46: 0 | H46: =DM!J9 -> 0 | I46: 0 | J46: 0
B47: =DM!E10 -> 0 | C47: 0 | D47: 0 | E47: 0 | H47: =DM!J10 -> 0 | I47: 0 | J47: 0
B48: =DM!E11 -> 0 | C48: 0 | D48: 0 | E48: 0 | H48: =DM!J11 -> 0 | I48: 0 | J48: 0
B49: =DM!E12 -> 0 | C49: 0 | D49: 0 | E49: 0 | H49: =DM!J12 -> 0 | I49: 0 | J49: 0
B50: =DM!E13 -> 0 | C50: 0 | D50: 0 | E50: 0 | H50: =DM!J13 -> 0 | I50: 0 | J50: 0
B51: =DM!E14 -> 0 | C51: 0 | D51: 0 | E51: 0 | H51: =DM!J14 -> 0 | I51: 0 | J51: 0
B52: =DM!E15 -> 0 | C52: 0 | D52: 0 | E52: 0 | H52: =DM!J15 -> 0 | I52: 0 | J52: 0
B53: =DM!E16 -> 0 | C53: 0 | D53: 0 | E53: 0 | H53: =DM!J16 -> 0 | I53: 0 | J53: 0
B54: =DM!E17 -> 0 | C54: 0 | D54: 0 | E54: 0 | H54: =DM!J17 -> 0 | I54: 0 | J54: 0
B55: =DM!E18 -> 0 | C55: 0 | D55: 0 | E55: 0 | H55: =DM!J18 -> 0 | I55: 0 | J55: 0
B56: =DM!E19 -> 0 | C56: 0 | D56: 0 | E56: 0 | H56: =DM!J19 -> 0 | I56: 0 | J56: 0
B57: =DM!E20 -> 0 | C57: 0 | D57: 0 | E57: 0 | H57: =DM!J20 -> 0 | I57: 0 | J57: 0
B58: =DM!E21 -> 0 | C58: 0 | D58: 0 | E58: 0 | H58: =DM!J21 -> 0 | I58: 0 | J58: 0
B59: =DM!E22 -> 0 | C59: 0 | D59: 0 | E59: 0 | H59: =DM!J22 -> 0 | I59: 0 | J59: 0
B60: =DM!E23 -> 0 | C60: 0 | D60: 0 | E60: 0 | H60: =DM!J23 -> 0 | I60: 0 | J60: 0
B61: Tổng | C61: =SUM(C41:C60) -> 0 | D61: =SUM(D41:D60) -> 0 | E61: 0 | F61: 0 | H61: Tổng | I61: =SUM(I41:I60) -> 0 | J61: =SUM(J41:J60) -> 0 | K61: =SUM(K41:K60) -> 0

Sheet DL93 (hidden)
A1: 1 | H1: Tên KH | I1: WPRO.VN - 0869 770 968
